[Event "45th FIDE Womens Olympiad 2024"]
[Site "Budapest"]
[Date "2024.09.16"]
[Round "6.17"]
[White "Osmak, Yuliia"]
[Black "Injac, Teodora"]
[Result "1-0"]
[ECO "D31"]
[WhiteElo "2471"]
[BlackElo "2425"]
[Annotator "TA"]
[PlyCount "85"]
[EventDate "2024.09.05"]
[EventType "team-tourn"]
[EventCountry "HUN"]
[SourceTitle "playchess.com"]
[Source "ChessBase"]
[SourceQuality "1"]
[WhiteTeam "Ukraine"]
[BlackTeam "Serbia"]
[WhiteTeamCountry "UKR"]
[BlackTeamCountry "SRB"]
[TimeControl "40/5400+30:1800+30"]

{[%evp 15,85,0,7,0,7,-5,0,0,7,-15,-36,-39,33,30,41,22,53,60,73,63,106,97,99,66,185,188,174,187,177,181,169,178,179,123,124,124,123,122,120,119,132,96,184,167,147,152,154,156,212,181,172,170,370,185,648,648,733,706,853,857,815,645,1644,1438,1843,1839,1693,1666,3760,3740,29975,8076]} 1. c4 {[%emt 0:00:02]} e6 {[%emt 0:01:00]} 2. Nc3 {[%emt 0:00:05]} d5 {[%emt 0:00:04]} 3. d4 {[%emt 0:00:04]} Be7 {[%emt 0:01:31]} 4. cxd5 {[%emt 0:01:13]} exd5 {[%emt 0:00:05]} 5. Bf4 {[%emt 0:00:02]} c6 {[%emt 0:00:20]} 6. e3 {[%emt 0:00:17]} Bf5 {[%emt 0:00:35]} 7. Nge2 {[%emt 0:00:43]} Nd7 {[%emt 0:02:06][%cal Bb8d7,Bd7f8,Bf8e6][%mdl 32]} 8. Ng3 {[%emt 0:01:13]} Bg6 {[%emt 0:00:46]} 9. Be2 {[%emt 0:00:36]} Qb6 {[%emt 0:01:13]} 10. Qd2 {[%emt 0:00:25]} h5 {[%emt 0:02:56]} 11. h4 {[%emt 0:06:40] The position is equal.} Nf8 {[%emt 0:01:21]} 12. e4 {[%emt 0:17:59]} dxe4 {[%emt 0:06:13]} 13. Ngxe4 {[%emt 0:01:10]} Nf6 {[%emt 0:38:23]} ({Black should try} 13... Ne6 $15 14. Be3 Rd8) 14. Nd6+ $14 {[%emt 0:17:11]} Bxd6 {[%emt 0:00:10]} 15. Bxd6 {[%emt 0:00:02]} Qd8 {[%emt 0:21:12]} 16. Ba3 {[%emt 0:16:26][%cal Od4d5] d5! is the strong threat.} Ne6 {[%emt 0:00:05]} 17. Rd1 $1 {[%emt 0:00:36] Hoping for d5.} Qa5 {[%emt 0:01:58] [#]} 18. d5 $1 {[%emt 0:06:36][%mdl 512]} Rd8 {[%emt 0:05:04]} (18... O-O-O 19. d6) 19. Bf3 {[%emt 0:02:58][%cal Be2f3,Bf3c6,Bc6b5,Bb5c4][%mdl 32]} b5 {[%emt 0:09:28]} (19... Nxd5 $14 20. Nxd5 Qxd2+ 21. Rxd2 cxd5) 20. dxe6 $18 {[%emt 0:10:05]} (20. O-O b4 21. Ne2 Nxd5 22. Bxd5 Rxd5 23. Qxb4 Qxb4 24. Bxb4 Bd3 $11) 20... Rxd2 {[%emt 0:00:05]} 21. Bxc6+ {[%emt 0:00:08]} Kd8 {[%emt 0:00:11] White must now prevent ...Rxd1+.} 22. Rxd2+ {[%emt 0:00:08]} Kc7 {[%emt 0:01:30] Black is weak on the dark squares} 23. Bxb5 {[%emt 0:01:01]} (23. Nxb5+ $2 {too greedy.} Kxc6 24. Nd4+ Kb6 $19) 23... fxe6 {[%emt 0:01:13]} 24. O-O {[%emt 0:02:49]} (24. Rd6 $18 {[%cal Od6a6] And now Ra6! would win.} Kb7 25. O-O (25. Rxe6 Be8 $18)) 24... Rd8 $16 {[%emt 0:00:30]} 25. Rxd8 {[%emt 0:03:11]} Kxd8 {[%emt 0:00:03][%cal Bc7d8,Bd8c8,Bc8d7][%mdl 32] [#]} 26. Rd1+ $1 {[%emt 0:00:23]} Kc8 {[%emt 0:01:10]} 27. Bc4 {[%emt 0:02:21]} Bf5 {[%emt 0:01:01]} 28. Bd6 {[%emt 0:00:26]} Ng4 {[%emt 0:01:02]} (28... Kb7 $16) 29. b4 $36 {[%emt 0:03:24][%mdl 2048] Keeping Black busy.} Qa3 {[%emt 0:00:01][%cal Oa3b2]} 30. Nb5 {[%emt 0:00:21]} Qa4 {[%emt 0:02:18]} 31. Rc1 {[%emt 0:01:44] Strongly threatening Bb3+. Some like it hot. White is more active.} Kd7 {[%emt 0:00:23]} (31... Kd8 $16 {was worth a try.}) 32. Bc5 {[%emt 0:00:08] This pair of bishops is nice.} a6 {[%emt 0:00:49]} 33. Nd6 {[%emt 0:01:33]} Bc2 {[%emt 0:01:39] Prevents Bb3} (33... Ne5) 34. Re1 {[%emt 0:00:25]} (34. b5 $142 Qa5 35. Rxc2 Qe1+ 36. Bf1 axb5 37. Nxb5) 34... e5 $2 {[%emt 0:00:31]} (34... Qa3) 35. f3 $18 {[%emt 0:00:59]} Nf6 {[%emt 0:00:01]} 36. Rxe5 {[%emt 0:00:06]} Qa3 {[%emt 0:00:32] [#]} 37. Re7+ $3 {[%emt 0:01:29][%mdl 512]} Kc6 {[%emt 0:00:11] [#]} 38. Bxa6 $1 {[%emt 0:02:19][%csl Gd6,Ge7][%cal Ra6b7][%mdl 512]} Qc1+ {[%emt 0:00:21]} (38... Qxa6 39. b5+) 39. Kh2 {[%emt 0:00:22][%csl Gd6,Ge7][%cal Ra6b7]} Qf4+ {[%emt 0:01:20]} 40. g3 {[%emt 0:00:12][%csl Gd6,Ge7][%cal Ra6b7]} Qd2+ {[%emt 0:00:01]} 41. Kh3 {[%emt 0:08:51][%csl Gd6,Ge7][%cal Ra6b7]} Bf5+ {[%emt 0:09:56]} 42. Nxf5 {[%emt 0:00:08] White threatens a4 and mate.} Qc1 {[%emt 0:01:15]} 43. b5+ {[%emt 0:01:21] Weighted Error Value: White=0.29 (precise) /Black=0.59.  Mistake:       	White=2     	Black=6      Inaccurate:     	White=1     	Black=2      OK:         	White=9     	Black=10     Best:        	White=4     	Black=5      Strong:       	White=2     	---        Brilliant:      	White=1     	---} (43. Nxg7 $2 Qh1#) 1-0

[Event "45th FIDE Womens Olympiad 2024"]
[Site "Budapest"]
[Date "2024.09.16"]
[Round "6.17"]
[White "Sele, Timea"]
[Black "Ramas, Carmina Jasmine"]
[Result "0-1"]
[ECO "B07"]
[WhiteElo "1699"]
[BlackElo "1712"]
[PlyCount "76"]
[EventDate "2024.09.05"]
[EventType "team-tourn"]
[EventCountry "HUN"]
[WhiteTeam "Liechtenstein"]
[BlackTeam "Guam"]
[WhiteTeamCountry "LIE"]
[BlackTeamCountry "GMA"]
[TimeControl "40/5400+30:1800+30"]

1. d4 d6 2. Nf3 Nf6 3. c3 Nbd7 4. Nbd2 e5 5. e4 c6 6. Bd3 Be7 7. O-O O-O 8. a4 a5 9. Re1 Re8 10. Qc2 h6 11. dxe5 dxe5 12. Nc4 Bf8 13. Be3 Qc7 14. Rad1 b5 15. Ncd2 Ba6 16. Nh4 Nc5 17. axb5 cxb5 18. Bf1 Rad8 19. b4 Na4 20. Rc1 axb4 21. c4 Qb7 22. cxb5 Bxb5 23. Bxb5 Qxb5 24. Ra1 Nc3 25. Ra7 Rd7 26. Rea1 Red8 27. h3 Rxa7 28. Rxa7 Rc8 29. Qb3 Nd7 30. Nf5 Qc6 31. g4 Ra8 32. Rxa8 Qxa8 33. Ng3 Nb8 34. f3 Nc6 35. Nc4 Qa1+ 36. Kf2 Nd4 37. Bxd4 exd4 38. Ne2 Bc5 {0-} 0-1

[Event "45th FIDE Womens Olympiad 2024"]
[Site "Budapest"]
[Date "2024.09.16"]
[Round "6.18"]
[White "Gajcin, Marina"]
[Black "Ushenina, Anna"]
[Result "0-1"]
[ECO "B51"]
[WhiteElo "2253"]
[BlackElo "2417"]
[Annotator "RC"]
[PlyCount "162"]
[EventDate "2024.09.05"]
[EventType "team-tourn"]
[EventCountry "HUN"]
[SourceTitle "playchess.com"]
[Source "ChessBase"]
[SourceQuality "1"]
[WhiteTeam "Serbia"]
[BlackTeam "Ukraine"]
[WhiteTeamCountry "SRB"]
[BlackTeamCountry "UKR"]
[TimeControl "40/5400+30:1800+30"]

1. e4 {[%emt 0:00:03]} c5 {[%emt 0:00:23]} 2. Nf3 {[%emt 0:00:07]} d6 {[%emt 0:00:21]} 3. Bb5+ {[%emt 0:00:54]} Nd7 {[%emt 0:00:38]} 4. a4 {[%emt 0:07:24]} Ngf6 {[%emt 0:01:23]} 5. Nc3 {[%emt 0:00:14]} g6 {[%emt 0:03:19]} 6. O-O {[%emt 0:03:49]} Bg7 {[%emt 0:01:32]} 7. a5 {[%emt 0:00:16]} a6 {[%emt 0:07:58]} 8. Be2 {[%emt 0:00:28]} O-O {[%emt 0:00:24]} 9. d3 {[%emt 0:00:10]} b5 {[%emt 0:06:05]} 10. axb6 {[%emt 0:00:11]} Nxb6 {[%emt 0:00:03]} 11. Bg5 {[%emt 0:16:29]} h6 {[%emt 0:16:11]} 12. Bd2 {[%emt 0:00:51]} Bd7 {[%emt 0:03:57]} 13. h3 {[%emt 0:11:59]} Qc7 {[%emt 0:11:00]} 14. Bf4 {[%emt 0:07:50]} Bc6 {[%emt 0:05:58]} 15. Qd2 {[%emt 0:06:08]} Kh7 {[%emt 0:00:34]} 16. e5 {[%emt 0:05:30]} Nfd5 {[%emt 0:01:54]} 17. exd6 {[%emt 0:01:12]} exd6 {[%emt 0:00:08]} 18. d4 {[%emt 0:08:36]} Nxc3 {[%emt 0:25:13]} 19. bxc3 {[%emt 0:01:19]} c4 {[%emt 0:00:08]} 20. Bg3 {[%emt 0:06:57]} a5 {[%emt 0:00:51]} 21. h4 {[%emt 0:03:57]} Rfe8 {[%emt 0:01:15]} 22. Rfb1 {[%emt 0:00:27]} Ra6 {[%emt 0:02:36]} 23. Nh2 {[%emt 0:03:38]} Be4 {[%emt 0:02:08]} 24. Nf1 {[%emt 0:03:43]} Nd5 {[%emt 0:01:38]} 25. Ra4 {[%emt 0:01:35]} Nb6 {[%emt 0:01:31]} 26. Ra2 {[%emt 0:00:13]} Nd5 {[%emt 0:05:17]} 27. Ra4 {[%emt 0:00:59]} Nb6 {[%emt 0:00:06]} 28. Ra2 {[%emt 0:00:26]} h5 {[%emt 0:00:31]} 29. Rb5 {[%emt 0:07:24]} Qc6 {[%emt 0:00:48]} 30. Rbxa5 {[%emt 0:00:25]} Rxa5 {[%emt 0:00:10]} 31. Rxa5 {[%emt 0:00:01]} Bxg2 {[%emt 0:00:14]} 32. Ne3 {[%emt 0:01:16]} Be4 {[%emt 0:01:10]} 33. Ra7 {[%emt 0:00:51]} Kg8 {[%emt 0:00:22]} 34. Ra6 {[%emt 0:01:09]} Bh6 {[%emt 0:00:43]} 35. Bf1 {[%emt 0:00:37]} Qb7 {[%emt 0:00:36]} 36. Ra1 {[%emt 0:00:23]} Qc6 {[%emt 0:00:43]} 37. Ra6 {[%emt 0:00:37]} Qb7 {[%emt 0:00:36]} 38. Ra1 {[%emt 0:00:12]} Qc7 {[%emt 0:00:19]} 39. Nd5 {[%emt 0:00:57]} Nxd5 {[%emt 0:00:31]} 40. Qxh6 {[%emt 0:00:01]} Nxc3 {[%emt 0:00:25]} 41. Qf4 {[%emt 0:16:20]} Re6 {[%emt 0:11:36]} 42. Qd2 {[%emt 0:03:43]} Nd5 {[%emt 0:01:59]} 43. Qa5 {[%emt 0:04:41]} Qxa5 {[%emt 0:05:28]} 44. Rxa5 {[%emt 0:00:02]} Bf3 {[%emt 0:00:31]} 45. Bg2 {[%emt 0:02:02]} Bxg2 {[%emt 0:02:40]} 46. Kxg2 {[%emt 0:00:02]} Nc3 {[%emt 0:05:41]} 47. d5 {[%emt 0:03:41]} Rf6 {[%emt 0:00:09]} 48. Ra8+ {[%emt 0:02:19]} Kg7 {[%emt 0:02:53]} 49. Rd8 {[%emt 0:00:31]} Nxd5 {[%emt 0:00:07]} 50. Bxd6 {[%emt 0:00:19]} Rf5 {[%emt 0:00:00]} 51. Rc8 {[%emt 0:00:51]} c3 {[%emt 0:02:00]} 52. Bc5 {[%emt 0:01:27]} f6 {[%emt 0:01:43]} 53. Kg3 {[%emt 0:01:08]} g5 {[%emt 0:01:56]} 54. hxg5 {[%emt 0:00:01]} Rxg5+ {[%emt 0:00:24]} 55. Kh2 {[%emt 0:00:20]} Kg6 {[%emt 0:00:38]} 56. Bd4 {[%emt 0:00:18]} Rf5 {[%emt 0:00:31]} 57. Kg3 {[%emt 0:00:59]} h4+ {[%emt 0:00:30]} 58. Kh2 {[%emt 0:00:51]} Kg5 {[%emt 0:00:24]} 59. Bxc3 {[%emt 0:00:28]} Rxf2+ {[%emt 0:00:38]} 60. Kg1 {[%emt 0:00:01]} Rf3 {[%emt 0:00:27]} 61. Bd2+ {[%emt 0:00:17]} Kg4 {[%emt 0:00:16]} 62. c4 {[%emt 0:00:33]} Nf4 {[%emt 0:00:36]} 63. Bxf4 {[%emt 0:00:51]} Rxf4 {[%emt 0:00:16]} 64. c5 {[%emt 0:00:22]} Rc4 {[%emt 0:00:20]} 65. c6 {[%emt 0:00:45]} Kf4 {[%emt 0:00:50]} 66. c7 {[%emt 0:00:21]} f5 {[%emt 0:00:07]} 67. Kg2 {[%emt 0:00:38]} Rc3 {[%emt 0:00:45]} 68. Kh2 {[%emt 0:00:43]} Rc6 {[%emt 0:00:42]} 69. Kh3 {[%emt 0:00:24]} Rc2 {[%emt 0:00:12]} 70. Rh8 {[%emt 0:00:30]} Rxc7 {[%emt 0:00:04]} 71. Kg2 {[%emt 0:00:38]} Rg7+ {[%emt 0:00:44]} 72. Kf2 {[%emt 0:00:20]} Kg4 {[%emt 0:00:10]} 73. Ra8 {[%emt 0:00:33]} h3 {[%emt 0:00:12]} 74. Ra1 {[%emt 0:00:28]} Rc7 {[%emt 0:00:22]} 75. Rg1+ {[%emt 0:00:33]} Kf4 {[%emt 0:00:12]} 76. Rg8 {[%emt 0:00:26]} Rc2+ {[%emt 0:00:13]} 77. Kf1 {[%emt 0:00:16]} h2 {[%emt 0:00:08]} 78. Rh8 {[%emt 0:00:05]} Ke4 {[%emt 0:01:41]} 79. Rh4+ {[%emt 0:00:21]} f4 {[%emt 0:00:03]} 80. Rh8 {[%emt 0:00:17]} Rc1+ {[%emt 0:00:14]} 81. Kf2 {[%emt 0:00:46]} h1=Q {[%emt 0:00:15]} 0-1

[Event "45th FIDE Womens Olympiad 2024"]
[Site "Budapest"]
[Date "2024.09.16"]
[Round "6.19"]
[White "Gaponenko, Inna"]
[Black "Velikic, Adela"]
[Result "1-0"]
[ECO "B12"]
[WhiteElo "2324"]
[BlackElo "2260"]
[Annotator "TA"]
[PlyCount "77"]
[EventDate "2024.09.05"]
[EventType "team-tourn"]
[EventCountry "HUN"]
[SourceTitle "playchess.com"]
[Source "ChessBase"]
[SourceQuality "1"]
[WhiteTeam "Ukraine"]
[BlackTeam "Serbia"]
[WhiteTeamCountry "UKR"]
[BlackTeamCountry "SRB"]
[TimeControl "40/5400+30:1800+30"]

{[%evp 10,77,30,26,42,31,45,8,25,8,14,-12,0,0,0,0,0,0,0,0,0,0,0,-4,0,-10,14,0,0,0,0,0,0,0,0,-38,17,16,50,0,0,0,0,0,39,22,128,135,122,39,233,148,187,177,254,259,335,333,519,519,519,386,472,443,572,590,637,616,553,523]} 1. e4 {[%emt 0:00:04]} c6 {[%emt 0:00:10]} 2. d4 {[%emt 0:00:41]} d5 {[%emt 0:00:05]} 3. e5 {[%emt 0:01:48]} Bf5 {[%emt 0:00:06]} 4. Nf3 {[%emt 0:02:53]} e6 {[%emt 0:00:07]} 5. Be2 {[%emt 0:00:09]} Nd7 {[%emt 0:00:08]} 6. O-O {[%emt 0:08:03]} a5 {[%emt 0:00:07]} 7. a4 {[%emt 0:03:50]} f6 {[%emt 0:00:15]} 8. c4 {[%emt 0:08:30]} fxe5 {[%emt 0:01:28] The position is equal.} 9. dxe5 {[%emt 0:03:20] aiming for cxd5.} Bc5 {[%emt 0:00:31]} 10. cxd5 {[%emt 0:23:30]} cxd5 {[%emt 0:02:46]} 11. Nd4 {[%emt 0:23:19] [#] Strongly threatening Nxf5.} Bxd4 {[%emt 0:05:05]} 12. Qxd4 {[%emt 0:00:01]} Ne7 {[%emt 0:00:23][%cal Bg8e7,Be7c6,Bc6b4][%mdl 32]} 13. f4 {[%emt 0:08:46]} Nc6 {[%emt 0:01:19]} 14. Qd1 {[%emt 0:00:08]} Qb6+ {[%emt 0:08:28]} 15. Kh1 {[%emt 0:00:01]} O-O {[%emt 0:00:31]} 16. Na3 {[%emt 0:04:23]} Nb4 {[%emt 0:22:39]} 17. Bb5 {[%emt 0:00:09]} Rfd8 {[%emt 0:03:53]} 18. Bd2 {[%emt 0:01:08][%cal Bc1d2,Bd2c3,Bc3d4,Bd4b6][%mdl 32]} Rac8 {[%emt 0:14:11]} 19. Bc3 {[%emt 0:06:15]} Nc5 {[%emt 0:16:52]} 20. Bd4 {[%emt 0:00:12]} Qc7 {[%emt 0:00:25]} 21. Rc1 {[%emt 0:02:06]} Qe7 {[%emt 0:00:41]} 22. Be2 {[%emt 0:00:57]} Ne4 {[%emt 0:19:09]} (22... Ncd3 $15 23. Rxc8 Rxc8) 23. Nb5 {[%emt 0:00:13]} Qd7 {[%emt 0:01:41]} (23... Qh4 {seems wilder.} 24. Kg1 Rxc1 25. Qxc1 Bg4) 24. Bb6 {[%emt 0:01:15]} Rxc1 {[%emt 0:00:14]} 25. Qxc1 {[%emt 0:00:03]} Rc8 {[%emt 0:00:03]} 26. Qe3 $36 {[%emt 0:01:05][%mdl 2048] White fights for an advantage.} Nc2 {[%emt 0:00:57]} 27. Qg1 {[%emt 0:00:31]} Qe7 {[%emt 0:01:11]} (27... Bg6 $11 {remains equal.}) 28. Rc1 $16 {[%emt 0:00:20][%cal Oe2d1] And now Bd1! would win.} Qh4 {[%emt 0:00:32][%csl Gh4][%cal Re4g3] [#]} 29. g3 {[%emt 0:00:25]} ({Better is} 29. g4 $1 $16 {[%cal Rg4f5]} Bg6 30. Bd3 Ng3+ 31. Qxg3 Qxg3 32. hxg3 Bxd3 33. Nd6 (33. Bxa5 Rc5 $14)) 29... Qe7 $2 {[%emt 0:00:22] A mistake that costs the game.} (29... Qh3 $14) 30. Bd3 {[%emt 0:00:42] This pair of bishops is nice.} ({Not} 30. Bxa5 Nc3 31. Nxc3 Rxc3 $16) 30... Qb4 {[%emt 0:00:40]} 31. Rxc2 {[%emt 0:00:35]} Rxc2 {[%emt 0:00:28]} 32. Bxc2 {[%emt 0:00:02]} Qxb2 {[%emt 0:00:28]} 33. Qb1 {[%emt 0:00:32]} Qb4 {[%emt 0:00:36]} (33... Nf2+ $142 34. Kg2 Qxc2 35. Qxc2 Bxc2 36. Kxf2 (36. Bxf2 Bxa4 37. Nd6 Bc6 $18) 36... Bxa4) 34. Qxb4 $18 {[%emt 0:00:20]} axb4 {[%emt 0:00:02]} 35. Bxe4 {[%emt 0:00:27]} Bxe4+ {[%emt 0:00:04]} 36. Kg1 {[%emt 0:00:02] White is clearly winning.} Bc2 {[%emt 0:00:46]} 37. a5 {[%emt 0:00:07]} Ba4 {[%emt 0:00:04]} 38. Nd6 {[%emt 0:00:18]} Bc6 {[%emt 0:00:37]} 39. Kf2 {[%emt 0:00:16] Weighted Error Value: White=0.17 (very precise) /Black=0.40.  Loses game:     	---       	Black=1      Mistake:       	White=1     	Black=3      Inaccurate:     	White=4     	Black=3      OK:         	White=13    	Black=7      Best:        	White=2     	Black=3} 1-0

[Event "45th FIDE Womens Olympiad 2024"]
[Site "Budapest"]
[Date "2024.09.16"]
[Round "6.20"]
[White "Eric, Jovana"]
[Black "Doluhanova, Evgeniya"]
[Result "1-0"]
[ECO "C54"]
[WhiteElo "2162"]
[BlackElo "2304"]
[Annotator "TA"]
[PlyCount "115"]
[EventDate "2024.09.05"]
[EventType "team-tourn"]
[EventCountry "HUN"]
[SourceTitle "playchess.com"]
[Source "ChessBase"]
[SourceQuality "1"]
[WhiteTeam "Serbia"]
[BlackTeam "Ukraine"]
[WhiteTeamCountry "SRB"]
[BlackTeamCountry "UKR"]
[TimeControl "40/5400+30:1800+30"]

{[%evp 16,115,11,16,16,23,22,20,21,14,18,7,13,22,21,16,17,1,7,0,0,-28,-28,-28,-28,-73,-76,-81,-60,-66,-53,-91,-30,-88,-47,-54,-35,-51,-21,-31,-4,-75,-75,-64,-26,-77,-30,-122,-59,-62,-62,-59,-8,-16,0,-8,0,-33,-20,-33,50,45,116,13,314,313,315,315,801,561,431,375,302,214,179,0,293,301,288,290,2346,2319,1539,801,702,233,384,410,29971,29972,29966,29968,29973,29974,29975,29976,29995,29996,29997,29996,29998,29999]} 1. e4 {[%emt 0:00:03]} e5 {[%emt 0:00:07]} 2. Nf3 {[%emt 0:00:08]} Nc6 {[%emt 0:00:16]} 3. Bc4 {[%emt 0:00:10]} Bc5 {[%emt 0:00:14]} 4. c3 {[%emt 0:00:20]} Nf6 {[%emt 0:00:20]} 5. d3 {[%emt 0:00:26]} O-O {[%emt 0:00:56]} 6. O-O {[%emt 0:00:45]} d6 {[%emt 0:03:01]} 7. h3 {[%emt 0:02:36]} h6 {[%emt 0:01:01] 7...a5 is more fashionable.} 8. Re1 {[%emt 0:00:44]} a6 {[%emt 0:00:47] C54: Giuoco Piano: 4 c3 Nf6, main lines with 5 d4 and 5 d3.} 9. a4 {[%emt 0:00:55]} Ba7 {[%emt 0:03:35]} 10. Nbd2 {[%emt 0:01:56]} Be6 {[%emt 0:05:42]} 11. Bxe6 {[%emt 0:06:23]} fxe6 {[%emt 0:00:05]} 12. Nf1 {[%emt 0:01:11]} Nh5 {[%emt 0:07:58]} 13. b4 {[%emt 0:05:03]} Qf6 {[%emt 0:03:29]} 14. Ra2 {[%emt 0:02:30]} Nf4 {[%emt 0:06:53]} 15. Bxf4 {[%emt 0:04:42]} Qxf4 {[%emt 0:11:28]} 16. N1h2 {[%emt 0:03:48]} Qf7 {[%emt 0:12:32]} 17. g3 {[%emt 0:07:16]} a5 $146 {[%emt 0:05:30]} ({Predecessor:} 17... Rac8 18. Kg2 a5 19. b5 Nb8 20. Rb2 Nd7 21. Qb3 {½-½ Valinova,J (2412)-Grammatica,A (2410) Champion's League 2021/B1 email}) 18. bxa5 {[%emt 0:16:09]} Nxa5 {[%emt 0:00:42]} 19. Kg2 {[%emt 0:01:26]} Bb6 {[%emt 0:00:36]} 20. d4 {[%emt 0:05:16]} exd4 $1 {[%emt 0:03:36]} 21. cxd4 {[%emt 0:00:36]} e5 {[%emt 0:00:34]} 22. d5 {[%emt 0:10:34]} Bc5 {[%emt 0:01:03]} 23. Qd3 {[%emt 0:01:15]} c6 {[%emt 0:03:04]} (23... Nc6 $17 {aiming for ...Nb4.} 24. Raa1 Nb4) 24. Rb2 {[%emt 0:09:44]} (24. Rc2 $11) 24... cxd5 {[%emt 0:01:53]} 25. exd5 {[%emt 0:00:25]} b6 {[%emt 0:02:56]} (25... Qf5 {simplifies} 26. Qxf5 Rxf5 27. Re4 Raf8) 26. Re4 {[%emt 0:07:27]} Nb7 {[%emt 0:02:00]} 27. Rg4 {[%emt 0:05:22]} Qf5 {[%emt 0:07:34]} 28. Qd2 {[%emt 0:01:26]} (28. Qxf5 $11 {remains equal.} Rxf5 29. Nf1) 28... Qh7 {[%emt 0:08:59]} 29. Qe2 {[%emt 0:02:30]} Rae8 {[%emt 0:02:25]} 30. Re4 {[%emt 0:01:04]} (30. Qe4 $11) 30... Qg6 {[%emt 0:00:44]} (30... Qf5 $17) 31. Nf1 {[%emt 0:00:52] [#]} (31. Rg4 $11 Qh7 32. Re4) 31... Re7 {[%emt 0:02:50]} (31... Rf6 $1 $17) 32. N1d2 {[%emt 0:00:24]} Ref7 {[%emt 0:00:25]} 33. Rg4 {[%emt 0:00:20]} Qf5 {[%emt 0:00:34]} (33... Qh7 $15) 34. Rb3 $1 $11 {[%emt 0:00:30]} Na5 {[%emt 0:01:56]} 35. Rd3 {[%emt 0:00:19]} h5 {[%emt 0:00:59]} 36. Re4 {[%emt 0:02:11]} Qg6 {[%emt 0:00:13]} 37. Rh4 {[%emt 0:00:31]} Rf4 {[%emt 0:01:22]} (37... Nb7 $15) 38. Ne4 $1 $14 {[%emt 0:00:35]} Nb7 {[%emt 0:00:23] [#]} (38... R4f7 $14) 39. Kh2 {[%emt 0:00:46]} ({White must play} 39. Rxf4 $1 $16 exf4 40. Nfg5) 39... Rxh4 $4 {[%emt 0:00:32][%mdl 8192]} (39... R4f5 $11) 40. Nxh4 $18 {[%emt 0:00:06]} Qe8 {[%emt 0:00:35]} 41. Rf3 {[%emt 0:11:29]} Qxa4 $2 {[%emt 0:24:26]} (41... Rf7 42. Rf5 Rxf5 43. Nxf5 Qf7) 42. Rxf8+ {[%emt 0:02:03]} Kxf8 {[%emt 0:00:05]} 43. Qf3+ {[%emt 0:04:46]} Ke8 {[%emt 0:02:31]} 44. Ng6 {[%emt 0:03:43]} (44. Qxh5+ Kd8 $18) 44... Kd8 {[%emt 0:01:36]} 45. Qf7 $2 {[%emt 0:01:57]} ({Better is} 45. Qf8+ $18 Kc7 46. Qxg7+ Kb8 47. Qf8+ Ka7 48. Nxc5 bxc5 49. Ne7) 45... Qd7 $2 {[%emt 0:01:23][%mdl 8192]} (45... Qxe4 $11 {and Black stays safe.} 46. Nf8 Kc8 47. Qe8+ Nd8) 46. Qg8+ $18 {[%emt 0:01:11]} Kc7 {[%emt 0:02:50]} 47. Nf8 {[%emt 0:01:47]} Qe7 $2 {[%emt 0:00:05]} (47... Qc8 48. Qxg7+ Kb8 49. Nd7+ Ka7 50. Ndxc5 dxc5) 48. Ne6+ $18 {[%emt 0:04:34]} Kd7 {[%emt 0:00:12]} 49. Qa8 {[%emt 0:01:51]} (49. Qxg7 Qxg7 50. Nxg7 b5 $11) 49... Nd8 {[%emt 0:00:42]} 50. N4g5 $2 {[%emt 0:01:04]} (50. Nxg7 {Intending Qa7+ and mate.} Qf8 51. Kg2 (51. Nxh5 Kc7 $18)) 50... Ke8 $2 {[%emt 0:01:15]} (50... b5 51. Nf7 Qf6 52. Qxd8+ (52. Nexd8 $2 {gets mated.} Qxf2+ 53. Kh1 Qg1#) 52... Qxd8 53. Nfxd8 Bxf2) 51. Qa4+ $18 {[%emt 0:00:47]} Qd7 {[%emt 0:00:34]} (51... b5 $18 52. Qxb5+ Qd7 53. Nxg7+ Ke7 54. Qxd7+ Kxd7) 52. Nxg7+ {[%emt 0:00:23]} Ke7 {[%emt 0:00:03]} 53. Qh4 {[%emt 0:00:08]} Kf8 {[%emt 0:00:19]} 54. N7e6+ {[%emt 0:00:30]} (54. Nxh5 Qf5 55. Ne4 Nf7 $16) 54... Nxe6 {[%emt 0:00:27]} 55. Nxe6+ {[%emt 0:01:46]} Ke8 {[%emt 0:00:23]} 56. Qxh5+ {[%emt 0:00:16]} Ke7 {[%emt 0:00:37]} 57. Qh7+ {[%emt 0:00:12]} Ke8 {[%emt 0:00:04]} 58. Qg8+ {[%emt 0:00:04]} 1-0